fUST/lending_fUST_20250506
["ID","MTS","AMOUNT","RATE_DAILY","PERIOD"]
[360082976,1746543043419,-2254.63,0.00019178,2]
[360082978,1746543043428,-2254.63,0.00019178,2]
[360082980,1746543043438,-2254.63,0.00019178,2]
[360082982,1746543043447,-2254.63,0.00019178,2]
[360082984,1746543043456,-2254.63,0.00019178,2]
[360082986,1746543043467,-2254.63,0.00019178,2]
[360082989,1746543043476,-417.69,0.00019178,2]
[360082991,1746543043485,-2254.63,0.00019178,2]
[360082993,1746543043495,-2254.63,0.00019178,2]
[360082995,1746543043505,-400.0,0.00019178,2]
[360082997,1746543043515,-2254.63,0.00019178,2]
[360082999,1746543043524,-2254.63,0.00019178,2]
[360083001,1746543043534,-2254.63,0.00019178,2]
[360083003,1746543043543,-2254.63,0.00019178,2]
[360083005,1746543043553,-2254.63,0.00019178,2]
[360083007,1746543043563,-2254.63,0.00019178,2]
[360083009,1746543043572,-2254.63,0.00019178,2]
[360083012,1746543043583,-2254.63,0.00019178,2]
[360083014,1746543043592,-2254.63,0.00019178,2]
[360083016,1746543043602,-400.0,0.00019178,2]
[360083018,1746543043615,-2254.63,0.00019178,2]
[360083020,1746543043624,-2254.63,0.00019178,2]
[360083022,1746543043633,-2254.63,0.00019178,2]
[360083024,1746543043643,-2254.63,0.00019178,2]
[360083026,1746543043652,-400.0,0.00019178,2]
[360083028,1746543043661,-7780.86,0.00019178,2]
[360083030,1746543043670,-400.0,0.00019178,2]
[360083032,1746543043679,-400.0,0.00019178,2]
[360083034,1746543043689,-1344.17,0.00019178,2]
[360083036,1746543043698,-466.68,0.00019178,2]
[360083038,1746543043707,-400.0,0.00019178,2]
[360083040,1746543043717,-401.96524849,0.00019178,2]
[360083042,1746543043726,-1938.79,0.00019178,2]
[360083044,1746543043735,-400.0,0.00019178,2]
[360083046,1746543043744,-400.0,0.00019178,2]
[360083048,1746543043753,-400.0,0.00019178,2]
[360083050,1746543043763,-833.12,0.00019178,2]
[360083052,1746543043772,-400.0,0.00019178,2]
[360083054,1746543043780,-400.0,0.00019178,2]
[360083056,1746543043790,-1257.59,0.00019178,2]
[360083058,1746543043799,-400.0,0.00019178,2]
[360083060,1746543043808,-400.0,0.00019178,2]
[360083062,1746543043817,-3771.53,0.00019178,2]
[360083064,1746543043826,-400.0,0.00019178,2]
[360083066,1746543043836,-734.22,0.00019178,2]
[360083068,1746543043845,-400.0,0.00019178,2]
[360083070,1746543043854,-7931.1,0.00019178,2]
[360083072,1746543043863,-400.0,0.00019178,2]
[360083074,1746543043872,-400.0,0.00019178,2]
[360083076,1746543043886,-3622.27,0.00019178,2]
[360083078,1746543043895,-405.8713486,0.00019178,2]
[360083080,1746543043905,-632.724772,0.00019178,2]
[360083082,1746543043914,-365.92022932,0.00019178,2]
[360083084,1746543043923,-500.0,0.00019178,2]
[360083086,1746543043932,-500.0,0.00019178,2]
[360083088,1746543043942,-500.0,0.00019178,2]
[360083090,1746543043951,-500.0,0.00019178,2]
[360083092,1746543043961,-500.0,0.00019178,2]
[360083094,1746543043971,-500.0,0.00019178,2]
[360083096,1746543043979,-500.0,0.00019178,2]
[360083098,1746543043989,-500.0,0.00019178,2]
[360083100,1746543043998,-500.0,0.00019178,2]
[360083102,1746543044007,-500.0,0.00019178,2]
[360083104,1746543044017,-500.0,0.00019178,2]
[360083106,1746543044026,-400.0,0.00019178,2]
[360083108,1746543044035,-500.0,0.00019178,2]
[360083110,1746543044044,-500.0,0.00019178,2]
[360083112,1746543044054,-500.0,0.00019178,2]
[360083114,1746543044063,-500.0,0.00019178,2]
[360083116,1746543044072,-500.0,0.00019178,2]
[360083118,1746543044082,-500.0,0.00019178,2]
[360083120,1746543044091,-500.0,0.00019178,2]
[360083122,1746543044100,-500.0,0.00019178,2]
[360083124,1746543044110,-546.37379421,0.00019178,2]
[360083126,1746543044119,-500.0,0.00019178,2]
[360083128,1746543044128,-400.0,0.00019178,2]
[360083130,1746543044137,-415.90034457,0.00019178,2]
[360083132,1746543044147,-632.724772,0.00019178,2]
[360083133,1746543044156,-1060.16,0.00019178,2]
[360083134,1746543044165,-400.0,0.00019178,2]
[360083135,1746543044174,-400.0,0.00019178,2]
[360083136,1746543044183,-220.53743959,0.00019178,2]
[360083137,1746543044192,-400.0,0.00019178,2]
[360083138,1746543044201,-513.7459558,0.00019178,2]
[360083139,1746543044210,-400.0,0.00019178,2]
[360083140,1746543044218,-405.51,0.00019178,2]
[360083141,1746543044227,-400.0,0.00019178,2]
[360083142,1746543044236,-510.88,0.00019178,2]
[360083143,1746543044245,-3088.97,0.00019178,2]
[360083144,1746543044255,-400.0,0.00019178,2]
[360083145,1746543044264,-506.65,0.00019178,2]
[360083146,1746543044273,-400.0,0.00019178,2]
[360083147,1746543044282,-400.0,0.00019178,2]
[360083149,1746543044291,-400.0,0.00019178,2]
[360083151,1746543044299,-400.0,0.00019178,2]
[360083152,1746543044309,-400.0,0.00019178,2]
[360083153,1746543044318,-411.64,0.00019178,2]
[360083154,1746543044328,-495.61,0.00019178,2]
[360083155,1746543044340,-400.0,0.00019178,2]
[360083156,1746543044350,-400.0,0.00019178,2]
[360083157,1746543044360,-884.07,0.00019178,2]
[360083158,1746543044370,-400.0,0.00019178,2]
[360083159,1746543044380,-400.0,0.00019178,2]
[360083160,1746543044389,-400.0,0.00019178,2]
[360083162,1746543044399,-400.0,0.00019178,2]
[360083164,1746543044409,-3470.31,0.00019178,2]
[360083166,1746543044418,-400.0,0.00019178,2]
[360083168,1746543044427,-400.0,0.00019178,2]
[360083170,1746543044436,-151.0,0.00019178,2]
[360083172,1746543044446,-153.2741125,0.00019178,2]
[360083174,1746543044455,-400.0,0.00019178,2]
[360083176,1746543044464,-18541.14,0.00019178,2]
[360083178,1746543044473,-400.0,0.00019178,2]
[360083179,1746543044482,-400.0,0.00019178,2]
[360083181,1746543044492,-400.0,0.00019178,2]
[360083183,1746543044501,-403.34010556,0.00019178,2]
[360083185,1746543044511,-2462.55,0.00019178,2]
[360083188,1746543044521,-8115.91,0.00019178,2]
[360083189,1746543044530,-234.1504007,0.00019178,2]
[360083191,1746543044539,-400.0,0.00019178,2]
[360083193,1746543044549,-400.0,0.00019178,2]
[360083195,1746543044558,-400.0,0.00019178,2]
[360083197,1746543044567,-400.0,0.00019178,2]
[360083199,1746543044577,-408.63,0.00019178,2]
[360083201,1746543044586,-1796.34,0.00019178,2]
[360083203,1746543044596,-798.68,0.00019178,2]
[360083205,1746543044605,-151.0,0.00019178,2]
[360083207,1746543044615,-420.62,0.00019178,2]
[360083209,1746543044625,-402.10659483,0.00019178,2]
[360083211,1746543044634,-564.18,0.00019178,2]
[360083213,1746543044644,-400.0,0.00019178,2]
[360083215,1746543044654,-2768.75,0.00019178,2]
[360083217,1746543044664,-5434.56,0.00019178,2]
[360083219,1746543044673,-2880.62,0.00019178,2]
[360083221,1746543044682,-857.93,0.00019178,2]
[360083223,1746543044691,-584.98,0.00019178,2]
[360083225,1746543044701,-2553.13,0.00019178,2]
[360083227,1746543044711,-1594.54,0.00019178,2]
[360083229,1746543044720,-406.79252526,0.00019178,2]
[360083231,1746543044730,-151.0,0.00019178,2]
[360083233,1746543044739,-420.81417445,0.00019178,2]
[360083235,1746543044749,-400.0,0.00019178,2]
[360083237,1746543044758,-400.0,0.00019178,2]
[360083239,1746543044767,-1445.96,0.00019178,2]
[360083241,1746543044777,-503.74238831,0.00019178,2]
[360083242,1746543044786,-666.87,0.00019178,2]
[360083243,1746543044795,-400.0,0.00019178,2]
[360083244,1746543044805,-1695.78,0.00019178,2]
[360083245,1746543044815,-400.0,0.00019178,2]
[360083246,1746543044824,-400.0,0.00019178,2]
[360083247,1746543044835,-2659.17,0.00019178,2]
[360083248,1746543044845,-400.0,0.00019178,2]
[360083249,1746543044854,-586.68,0.00019178,2]
[360083250,1746543044865,-502.1374089,0.00019178,2]
[360083251,1746543044874,-502.8703402,0.00019178,2]
[360083252,1746543044888,-400.0,0.00019178,2]
[360083253,1746543044897,-451.19,0.00019178,2]
[360083254,1746543044907,-158.479145,0.00019178,2]
[360083255,1746543044916,-1213.8,0.00019178,2]
[360083256,1746543044926,-502.34032409,0.00019178,2]
[360083257,1746543044936,-400.0,0.00019178,2]
[360083258,1746543044945,-400.0,0.00019178,2]
[360083259,1746543044954,-400.0,0.00019178,2]
[360083260,1746543044966,-400.0,0.00019178,2]
[360083261,1746543044976,-400.0,0.00019178,2]
[360083262,1746543044985,-265.031267,0.00019178,2]
[360083263,1746543044995,-400.0,0.00019178,2]
[360083264,1746543045005,-449.36,0.00019178,2]
[360083265,1746543045014,-400.0,0.00019178,2]
[360083266,1746543045024,-401.42416385,0.00019178,2]
[360083267,1746543045033,-400.0,0.00019178,2]
[360083268,1746543045042,-3035.31,0.00019178,2]
[360083269,1746543045052,-2645.03,0.00019178,2]
[360083270,1746543045061,-514.92942498,0.00019178,2]
[360083271,1746543045071,-265.031267,0.00019178,2]
[360083272,1746543045083,-400.0,0.00019178,2]
[360083273,1746543045092,-400.0,0.00019178,2]
[360083274,1746543045102,-400.0,0.00019178,2]
[360083275,1746543045112,-400.0,0.00019178,2]
[360083276,1746543045122,-500.0,0.00019178,2]
[360083277,1746543045131,-400.0,0.00019178,2]
[360083278,1746543045141,-501.97207744,0.00019178,2]
[360083279,1746543045150,-1228.68,0.00019178,2]
[360083280,1746543045160,-161.011687,0.00019178,2]
[360083281,1746543045169,-400.0,0.00019178,2]
[360083282,1746543045179,-400.0,0.00019178,2]
[360083283,1746543045188,-400.0,0.00019178,2]
[360083284,1746543045198,-400.0,0.00019178,2]
[360083285,1746543045208,-400.0,0.00019178,2]
[360083286,1746543045218,-2621.11,0.00019178,2]
[360083287,1746543045227,-161.011687,0.00019178,2]
[360083288,1746543045238,-668.62,0.00019178,2]
[360083289,1746543045248,-400.0,0.00019178,2]
[360083290,1746543045258,-473.40339252,0.00019178,2]
[360083291,1746543045267,-400.0,0.00019178,2]
[360083292,1746543045277,-625.03,0.00019178,2]
[360083293,1746543045286,-400.0,0.00019178,2]
[360083294,1746543045296,-2078.7,0.00019178,2]
[360083295,1746543045306,-2143.33,0.00019178,2]
[360083296,1746543045315,-153.94588979,0.00019178,2]
[360083297,1746543045325,-400.0,0.00019178,2]
[360083298,1746543045335,-400.0,0.00019178,2]
[360083299,1746543045345,-400.0,0.00019178,2]
[360083300,1746543045354,-400.0,0.00019178,2]
[360083301,1746543045363,-277.83555201,0.00019178,2]
[360083302,1746543045373,-1488.42,0.00019178,2]
[360083303,1746543045382,-400.0,0.00019178,2]
[360083304,1746543045393,-151.0,0.00019178,2]
[360083305,1746543045402,-466.07648,0.00019178,2]
[360083306,1746543045412,-500.0,0.00019178,2]
[360083307,1746543045421,-300.0,0.00019178,2]
[360083308,1746543045431,-151.0,0.000192,2]
[360083309,1746543045440,-156.587,0.00019233,2]
[360083310,1746543045449,-8334.29931079,0.00019257,2]
[360083311,1746543045459,-598.43409583,0.00019287,2]
[360083312,1746543045468,-162.380719,0.00019288,2]
[360083313,1746543045477,-151.0,0.000193,2]
[360083314,1746543045487,-79827.2961807,0.00019329,2]
[360083315,1746543045497,-200.0,0.00019334,4]
[360083316,1746543045507,-168.3888056,0.00019343,2]
[360083317,1746543045516,-150.87121571,0.00019352,2]
[360083318,1746543045526,-200.0,0.0001938,2]
[360083319,1746543045535,-174.61919141,0.00019398,2]
[360083320,1746543045545,-151.0,0.000194,2]
[360083321,1746543045554,-151.0,0.00019452,2]
[360083322,1746543045563,-151.0,0.00019452,2]
[360083323,1746543045573,-153.15319,0.00019452,2]
[360083324,1746543045583,-400.0,0.00019452,2]
[360083325,1746543045592,-400.0,0.00019452,2]
[360083326,1746543045601,-151.0,0.00019452,2]
[360083327,1746543045610,-151.0,0.00019452,2]
[360083328,1746543045619,-400.0,0.00019452,2]
[360083329,1746543045628,-400.0,0.00019452,2]
[360083330,1746543045637,-500.0,0.00019452,2]
[360083331,1746543045647,-500.0,0.00019452,2]
[360083332,1746543045656,-400.0,0.00019452,2]
[360083333,1746543045665,-400.0,0.00019452,2]
[360083334,1746543045675,-400.0,0.00019452,2]
[360083335,1746543045684,-400.0,0.00019452,2]
[360083336,1746543045693,-400.0,0.00019452,2]
[360083337,1746543045703,-151.0,0.00019452,2]
[360083338,1746543045712,-151.0,0.00019452,2]
[360083339,1746543045722,-305.304723,0.00019452,2]
[360083340,1746543045731,-305.304723,0.00019452,2]
[360083341,1746543045740,-400.0,0.00019452,2]
[360083343,1746543045750,-400.0,0.00019452,2]
[360083345,1746543045759,-400.0,0.00019452,2]
[360083347,1746543045768,-400.0,0.00019452,2]
[360083349,1746543045778,-550.64,0.00019452,2]
[360083351,1746543045787,-400.0,0.00019452,2]
[360083353,1746543045796,-400.0,0.00019452,2]
[360083355,1746543045805,-400.0,0.00019452,2]
[360083357,1746543045814,-500.0,0.00019452,2]
[360083359,1746543045823,-400.0,0.00019452,2]
[360083360,1746543045832,-400.0,0.00019452,2]
[360083362,1746543045842,-400.0,0.00019452,2]
[360083364,1746543045851,-843.1,0.00019452,2]
[360083366,1746543045861,-400.0,0.00019452,2]
[360083368,1746543045871,-741.85,0.00019452,2]
[360083370,1746543045886,-400.0,0.00019452,2]
[360083372,1746543045896,-400.0,0.00019452,2]
[360083374,1746543045906,-400.0,0.00019452,2]
[360083376,1746543045915,-400.0,0.00019452,2]
[360083378,1746543045926,-408.15236333,0.00019452,2]
[360083380,1746543045936,-840.17,0.00019452,2]
[360083381,1746543045946,-508.96990523,0.00019452,2]
[360083382,1746543045955,-1112.68,0.00019452,2]
[360083396,1746543046109,-400.0,0.00019452,2]
[360083399,1746543046119,-400.0,0.00019452,2]
[360083402,1746543046129,-400.0,0.00019452,2]
[360083405,1746543046139,-400.0,0.00019452,2]
[360083408,1746543046149,-400.0,0.00019452,2]
[360083410,1746543046159,-400.0,0.00019452,2]
[360083413,1746543046169,-400.0,0.00019452,2]
[360083416,1746543046180,-400.0,0.00019452,2]
[360083420,1746543046192,-400.0,0.00019452,2]
[360083423,1746543046202,-520.55,0.00019452,2]
[360083426,1746543046212,-400.0,0.00019452,2]
[360083429,1746543046221,-400.0,0.00019452,2]
[360083432,1746543046231,-400.0,0.00019452,2]
[360083435,1746543046240,-400.0,0.00019452,2]
[360083438,1746543046250,-400.0,0.00019452,2]
[360083441,1746543046259,-2581.74,0.00019452,2]
[360083443,1746543046269,-564.29,0.00019452,2]
[360083446,1746543046278,-400.0,0.00019452,2]
[360083449,1746543046287,-400.0,0.00019452,2]
[360083453,1746543046297,-343.05919239,0.00019452,2]
[360083455,1746543046307,-400.0,0.00019452,2]
[360083458,1746543046317,-400.0,0.00019452,2]
[360083461,1746543046327,-400.0,0.00019452,2]
[360083463,1746543046338,-400.0,0.00019452,2]
[360083465,1746543046348,-400.0,0.00019452,2]
[360083467,1746543046357,-400.0,0.00019452,2]
[360083469,1746543046367,-400.0,0.00019452,2]
[360083471,1746543046377,-400.0,0.00019452,2]
[360083473,1746543046386,-197.91767361,0.00019452,2]
[360083475,1746543046396,-400.0,0.00019452,2]
[360083476,1746543046408,-400.0,0.00019452,2]
[360083477,1746543046418,-400.0,0.00019452,2]
[360083478,1746543046429,-407.55082593,0.00019452,2]
[360083479,1746543046439,-400.0,0.00019452,2]
[360083480,1746543046450,-400.0,0.00019452,2]
[360083481,1746543046460,-400.0,0.00019452,2]
[360083482,1746543046470,-408.46378272,0.00019452,2]
[360083483,1746543046479,-400.0,0.00019452,2]
[360083484,1746543046490,-1579.38,0.00019452,2]
[360083485,1746543046500,-407.90484404,0.00019452,2]
[360083488,1746543046510,-400.0,0.00019452,2]
[360083490,1746543046520,-400.0,0.00019452,2]
[360083492,1746543046529,-400.0,0.00019452,2]
[360083493,1746543046539,-400.0,0.00019452,2]
[360083495,1746543046548,-400.0,0.00019452,2]
[360083496,1746543046558,-400.0,0.00019452,2]
[360083497,1746543046568,-735.95,0.00019452,2]
[360083498,1746543046577,-421.24,0.00019452,2]
[360083499,1746543046588,-400.0,0.00019452,2]
[360083500,1746543046598,-400.0,0.00019452,2]
[360083501,1746543046608,-358.0,0.00019452,2]
[360083502,1746543046618,-521.93,0.00019452,2]
[360083503,1746543046628,-525.26858255,0.00019452,2]
[360083504,1746543046638,-901.99,0.00019452,2]
[360083505,1746543046648,-400.0,0.00019452,2]
[360083506,1746543046657,-400.0,0.00019452,2]
[360083507,1746543046667,-400.0,0.00019452,2]
[360083508,1746543046676,-400.0,0.00019452,2]
[360083509,1746543046687,-1118.03,0.00019452,2]
[360083510,1746543046697,-1282.19,0.00019452,2]
[360083511,1746543046707,-400.0,0.00019452,2]
[360083512,1746543046716,-400.0,0.00019452,2]
[360083513,1746543046726,-481.17,0.00019452,2]
[360083514,1746543046735,-400.0,0.00019452,2]
[360083515,1746543046745,-404.49,0.00019452,2]
[360083516,1746543046755,-400.0,0.00019452,2]
[360083517,1746543046765,-400.0,0.00019452,2]
[360083518,1746543046775,-400.0,0.00019452,2]
[360083519,1746543046784,-689.61,0.00019452,2]
[360083520,1746543046794,-543.05,0.00019452,2]
[360083521,1746543046803,-251.336493,0.00019452,2]
[360083522,1746543046813,-406.57947226,0.00019452,2]
[360083523,1746543046822,-400.0,0.00019452,2]
[360083524,1746543046832,-400.0,0.00019452,2]
[360083525,1746543046843,-400.0,0.00019452,2]
[360083526,1746543046853,-1272.75,0.00019452,2]
[360083527,1746543046862,-1000.0,0.00019452,2]
[360083528,1746543046873,-400.0,0.00019452,2]
[360083529,1746543046888,-644.15,0.00019452,2]
[360083530,1746543046901,-400.0,0.00019452,2]
[360083531,1746543046910,-400.0,0.00019452,2]
[360083532,1746543046921,-667.06,0.00019452,2]
[360083533,1746543046930,-1155.55,0.00019452,2]
[360083534,1746543046940,-500.0,0.00019452,2]
[360083535,1746543046949,-151.0,0.00019452,2]
[360083536,1746543046959,-400.0,0.00019452,2]
[360083537,1746543046973,-400.0,0.00019452,2]
[360083538,1746543046983,-5499.44,0.00019452,2]
[360083539,1746543046993,-400.0,0.00019452,2]
[360083540,1746543047003,-4830.96,0.00019452,2]
[360083541,1746543047013,-400.0,0.00019452,2]
[360083542,1746543047023,-400.0,0.00019452,2]
[360083543,1746543047033,-400.0,0.00019452,2]
[360083544,1746543047042,-400.0,0.00019452,2]
[360083545,1746543047051,-400.0,0.00019452,2]
[360083546,1746543047061,-400.0,0.00019452,2]
[360083547,1746543047070,-400.0,0.00019452,2]
[360083548,1746543047079,-400.0,0.00019452,2]
[360083549,1746543047090,-400.0,0.00019452,2]
[360083550,1746543047099,-151.0,0.00019452,2]
[360083551,1746543047109,-400.8255333,0.00019452,2]
[360083552,1746543047118,-400.0,0.00019452,2]
[360083553,1746543047127,-400.0,0.00019452,2]
[360083554,1746543047137,-3229.23,0.00019452,2]
[360083555,1746543047148,-151.0,0.00019452,2]
[360083556,1746543047157,-405.29903765,0.00019452,2]
[360083557,1746543047167,-400.0,0.00019452,2]
[360083558,1746543047176,-400.0,0.00019452,2]
[360083559,1746543047186,-400.0,0.00019452,2]
[360083560,1746543047196,-1005.92,0.00019452,2]
[360083561,1746543047206,-400.0,0.00019452,2]
[360083562,1746543047215,-1533.54,0.00019452,2]
[360083563,1746543047224,-400.0,0.00019452,2]
[360083564,1746543047234,-304.14962058,0.00019452,2]
[360083565,1746543047244,-400.0,0.00019452,2]
[360083566,1746543047253,-400.0,0.00019452,2]
[360083567,1746543047263,-400.0,0.00019452,2]
[360083568,1746543047273,-400.0,0.00019452,2]
[360083569,1746543047283,-400.0,0.00019452,2]
[360083570,1746543047292,-516.61,0.00019452,2]
[360083571,1746543047301,-400.0,0.00019452,2]
[360083572,1746543047311,-444.07,0.00019452,2]
[360083573,1746543047320,-400.0,0.00019452,2]
[360083574,1746543047330,-434.65872626,0.00019452,2]
[360083575,1746543047340,-400.0,0.00019452,2]
[360083576,1746543047350,-400.0,0.00019452,2]
[360083577,1746543047359,-1515.05,0.00019452,2]
[360083578,1746543047369,-909.21,0.00019452,2]
[360083579,1746543047378,-153.201412,0.00019452,2]
[360083580,1746543047387,-644.08,0.00019452,2]
[360083581,1746543047397,-796.67,0.00019452,2]
[360083582,1746543047406,-400.0,0.00019452,2]
[360083583,1746543047416,-400.0,0.00019452,2]
[360083584,1746543047426,-1582.65,0.00019452,2]
[360083585,1746543047435,-400.0,0.00019452,2]
[360083586,1746543047444,-151.0,0.00019452,2]
[360083587,1746543047454,-151.0,0.00019452,2]
[360083588,1746543047463,-371.027915,0.00019452,2]
[360083589,1746543047473,-1138.87,0.00019452,2]
[360083590,1746543047483,-151.0,0.00019452,2]
[360083591,1746543047492,-400.0,0.00019452,2]
[360083592,1746543047501,-151.0,0.00019452,2]
[360083593,1746543047510,-371.027915,0.00019452,2]
[360083594,1746543047519,-400.0,0.00019452,2]
[360083595,1746543047528,-151.0,0.00019452,2]
[360083596,1746543047538,-514.17080957,0.00019452,2]
[360083597,1746543047547,-400.0,0.00019452,2]
[360083598,1746543047556,-400.0,0.00019452,2]
[360083599,1746543047565,-962.27,0.00019452,2]
[360083600,1746543047575,-400.0,0.00019452,2]
[360083601,1746543047585,-400.0,0.00019452,2]
[360083602,1746543047594,-400.0,0.00019452,2]
[360083603,1746543047603,-400.0,0.00019452,2]
[360083604,1746543047612,-406.77745766,0.00019452,2]
[360083605,1746543047622,-400.0,0.00019452,2]
[360083606,1746543047631,-400.0,0.00019452,2]
[360083607,1746543047641,-151.0,0.00019452,2]
[360083608,1746543047650,-400.0,0.00019452,2]
[360083609,1746543047660,-1488.11,0.00019452,2]
[360083610,1746543047669,-400.0,0.00019452,2]
[360083611,1746543047679,-151.0,0.00019452,2]
[360083613,1746543047688,-151.0,0.00019452,2]
[360083614,1746543047698,-151.0,0.00019452,2]
[360083615,1746543047708,-400.0,0.00019452,2]
[360083616,1746543047718,-476.14,0.00019452,2]
[360083617,1746543047727,-151.0,0.00019452,2]
[360083618,1746543047736,-161.223709,0.00019452,2]
[360083619,1746543047746,-4239.87,0.00019452,2]
[360083620,1746543047755,-400.0,0.00019452,2]
[360083621,1746543047764,-400.0,0.00019452,2]
[360083622,1746543047773,-474.27,0.00019452,2]
[360083623,1746543047783,-587.8,0.00019452,2]
[360083624,1746543047792,-151.0,0.00019452,2]
[360083625,1746543047801,-400.0,0.00019452,2]
[360083626,1746543047811,-400.0,0.00019452,2]
[360083627,1746543047821,-151.0,0.00019452,2]
[360083628,1746543047830,-400.0,0.00019452,2]
[360083629,1746543047840,-795.13,0.00019452,2]
[360083630,1746543047849,-433.81,0.00019452,2]
[360083631,1746543047858,-400.0,0.00019452,2]
[360083632,1746543047867,-151.0,0.00019452,2]
[360083633,1746543047877,-151.0,0.00019452,2]
[360083634,1746543047890,-505.15,0.00019452,2]
[360083635,1746543047898,-1112.8,0.00019452,2]
[360083636,1746543047908,-716.55,0.00019452,2]
[360083637,1746543047917,-404.56256714,0.00019452,2]
[360083638,1746543047926,-400.0,0.00019452,2]
[360083639,1746543047935,-538.56,0.00019452,2]
[360083640,1746543047944,-399.50099296,0.00019452,2]
[360083641,1746543047953,-507.82,0.00019452,2]
[360083642,1746543047962,-151.0,0.00019452,2]
[360083643,1746543047971,-400.0,0.00019452,2]
[360083644,1746543047981,-425.56,0.00019452,2]
[360083645,1746543047990,-400.0,0.00019452,2]
[360083646,1746543047999,-533.93,0.00019452,2]
[360083647,1746543048008,-407.61349436,0.00019452,2]
[360083648,1746543048017,-384.36037893,0.00019452,2]
[360083649,1746543048027,-400.0,0.00019452,2]
[360083650,1746543048036,-400.0,0.00019452,2]
[360083651,1746543048046,-500.0,0.00019452,2]
[360083652,1746543048055,-400.0,0.00019452,2]
[360083653,1746543048065,-400.0,0.00019452,2]
[360083654,1746543048074,-400.0,0.00019452,2]
[360083655,1746543048084,-527.55388141,0.00019452,2]
[360083656,1746543048093,-400.0,0.00019452,2]
[360083657,1746543048103,-554.91,0.00019452,2]
[360083658,1746543048112,-205.78195,0.00019452,2]
[360083659,1746543048121,-400.0,0.00019452,2]
[360083660,1746543048131,-400.0,0.00019452,2]
[360083661,1746543048140,-400.0,0.00019452,2]
[360083662,1746543048150,-1002.07,0.00019452,2]
[360083663,1746543048160,-1117.42,0.00019452,2]
[360083664,1746543048169,-410.02294539,0.00019452,2]
[360083665,1746543048178,-400.0,0.00019452,2]
[360083666,1746543048188,-406.27990152,0.00019452,2]
[360083667,1746543048198,-2483.5,0.00019452,2]
[360083668,1746543048208,-400.0,0.00019452,2]
[360083669,1746543048217,-540.28,0.00019452,2]
[360083670,1746543048228,-411.47,0.00019452,2]
[360083671,1746543048238,-400.0,0.00019452,2]
[360083672,1746543048248,-1986.4,0.00019452,2]
[360083673,1746543048257,-202.21434323,0.00019452,2]
[360083674,1746543048266,-400.0,0.00019452,2]
[360083675,1746543048275,-771.76,0.00019452,2]
[360083676,1746543048285,-400.0,0.00019452,2]
[360083677,1746543048294,-417.45388257,0.00019452,2]
[360083678,1746543048304,-683.38,0.00019452,2]
[360083679,1746543048313,-400.0,0.00019452,2]
[360083680,1746543048323,-1054.39,0.00019452,2]
[360083681,1746543048332,-400.0,0.00019452,2]
[360083682,1746543048343,-414.38058515,0.00019452,2]
[360083683,1746543048353,-400.0,0.00019452,2]
[360083684,1746543048362,-707.73,0.00019452,2]